fUST/lending_fUST_20260109
["ID","MTS","AMOUNT","RATE_DAILY","PERIOD"]
[401053540,1767894644883,-165.20381649,0.00013699,2]
[401053542,1767894644894,-500.0,0.00013699,2]
[401053544,1767894644905,-500.0,0.00013699,2]
[401053546,1767894644919,-500.0,0.00013699,2]
[401053548,1767894644930,-500.97859119,0.00013699,2]
[401053550,1767894644941,-500.0,0.00013699,2]
[401053552,1767894644951,-500.25512227,0.00013699,2]
[401053554,1767894644963,-500.0,0.00013699,2]
[401053557,1767894644974,-500.0,0.00013699,2]
[401053559,1767894644985,-500.0,0.00013699,2]
[401053561,1767894644996,-500.0,0.00013699,2]
[401053563,1767894645007,-500.0,0.00013699,2]
[401053565,1767894645018,-500.0,0.00013699,2]
[401053567,1767894645028,-346.80702233,0.00013699,2]
[401053569,1767894645039,-340.41437066,0.00013699,2]
[401053571,1767894645049,-500.0,0.00013699,2]
[401053573,1767894645060,-500.0,0.00013699,2]
[401053575,1767894645071,-525.26239799,0.00013699,2]
[401053577,1767894645082,-417.18064855,0.00013699,2]
[401053580,1767894645092,-500.0,0.00013699,2]
[401053582,1767894645103,-500.0,0.00013699,2]
[401053584,1767894645114,-500.0,0.00013699,2]
[401053586,1767894645125,-500.0,0.00013699,2]
[401053588,1767894645136,-500.0,0.00013699,2]
[401053590,1767894645146,-500.0,0.00013699,2]
[401053592,1767894645158,-500.0,0.00013699,2]
[401053594,1767894645168,-158.26651658,0.00013699,2]
[401053596,1767894645179,-500.0,0.00013699,2]
[401053599,1767894645191,-500.0,0.00013699,2]
[401053601,1767894645201,-500.0,0.00013699,2]
[401053603,1767894645212,-500.0,0.00013699,2]
[401053605,1767894645223,-163.82427234,0.00013699,2]
[401053607,1767894645234,-500.0,0.00013699,2]
[401053609,1767894645244,-158.54413521,0.00013699,2]
[401053611,1767894645255,-500.0,0.00013699,2]
[401053613,1767894645266,-500.0,0.00013699,2]
[401053615,1767894645276,-535.32110094,0.00013699,2]
[401053617,1767894645286,-500.0,0.00013699,2]
[401053620,1767894645296,-500.0,0.00013699,2]
[401053622,1767894645306,-500.0,0.00013699,2]
[401053624,1767894645317,-500.0,0.00013699,2]
[401053626,1767894645326,-500.0,0.00013699,2]
[401053628,1767894645336,-500.0,0.00013699,2]
[401053630,1767894645345,-500.0,0.00013699,2]
[401053632,1767894645354,-500.0,0.00013699,2]
[401053633,1767894645363,-500.0,0.00013699,2]
[401053635,1767894645372,-500.0,0.00013699,2]
[401053637,1767894645382,-500.0,0.00013699,2]
[401053639,1767894645391,-500.0,0.00013699,2]
[401053641,1767894645401,-500.0,0.00013699,2]
[401053669,1767894645632,-500.0,0.00013699,2]
[401053672,1767894645649,-500.0,0.00013699,2]
[401053674,1767894645660,-347.95522048,0.00013699,2]
[401053676,1767894645669,-2434.74389024,0.00013706,2]
[401053678,1767894645679,-2524.82941417,0.00013761,2]
[401053680,1767894645688,-2618.2481025,0.00013816,2]
[401053682,1767894645697,-1000.0,0.00013821,2]
[401053684,1767894645706,-1000.0,0.00013821,2]
[401053686,1767894645715,-1000.0,0.00013821,2]
[401053688,1767894645725,-1147.44937683,0.00013821,2]
[401053690,1767894645734,-1000.0,0.00013821,2]
[401053692,1767894645743,-1000.0,0.00013821,2]
[401053694,1767894645753,-1000.0,0.00013821,2]
[401053696,1767894645762,-1000.0,0.00013821,2]
[401053698,1767894645771,-1000.0,0.00013821,2]
[401053700,1767894645779,-504.7840936,0.00013821,2]
[401053702,1767894645788,-1000.0,0.00013821,2]
[401053704,1767894645798,-1000.0,0.00013821,2]
[401053706,1767894645806,-1000.0,0.00013821,2]
[401053707,1767894645815,-1000.0,0.00013821,2]
[401053709,1767894645825,-1000.0,0.00013821,2]
[401053711,1767894645834,-1000.0,0.00013821,2]
[401053713,1767894645843,-1000.0,0.00013821,2]
[401053715,1767894645851,-1000.0,0.00013821,2]
[401053717,1767894645861,-1000.0,0.00013821,2]
[401053719,1767894645869,-1001.65991965,0.00013821,2]
[401053721,1767894645879,-1000.0,0.00013821,2]
[401053723,1767894645888,-1000.0,0.00013821,2]
[401053725,1767894645896,-1000.0,0.00013821,2]
[401053727,1767894645906,-1000.0,0.00013821,2]
[401053729,1767894645917,-501.96575102,0.00013821,2]
[401053731,1767894645927,-1000.0,0.00013821,2]
[401053733,1767894645937,-1000.0,0.00013821,2]
[401053735,1767894645946,-1000.0,0.00013821,2]
[401053737,1767894645956,-1000.0,0.00013821,2]
[401053739,1767894645965,-1000.0,0.00013821,2]
[401053741,1767894645973,-1000.0,0.00013821,2]
[401053743,1767894645983,-1000.0,0.00013821,2]
[401053745,1767894645995,-1000.0,0.00013821,2]
[401053747,1767894646004,-1000.0,0.00013821,2]
[401053749,1767894646013,-1000.0,0.00013821,2]
[401053751,1767894646023,-501.77913304,0.00013821,2]
[401053753,1767894646032,-1000.0,0.00013821,2]
[401053755,1767894646041,-1000.0,0.00013821,2]
[401053757,1767894646050,-1000.0,0.00013821,2]
[401053759,1767894646059,-1001.21467235,0.00013821,2]
[401053761,1767894646068,-1000.0,0.00013821,2]
[401053763,1767894646077,-453.31002908,0.00013821,2]
[401053765,1767894646086,-5000.0,0.0001386,2]
[401053766,1767894646095,-2545.42955254,0.00013871,2]
[401053768,1767894646104,-1000.0,0.00013933,2]
[401053770,1767894646113,-244.0,0.00013933,2]
[401053772,1767894646123,-533.88981491,0.00013979,2]
[401053774,1767894646133,-31110.0,0.00013979,2]
[401053776,1767894646142,-2579.17784983,0.00013979,2]
[401053778,1767894646151,-1093.27707489,0.00013979,2]
[401053780,1767894646161,-194.72792766,0.00013979,2]
[401053783,1767894646171,-151.0,0.00013979,2]
[401053784,1767894646180,-10000.0,0.00014025,2]
[401053786,1767894646189,-5303.42720671,0.00014063,2]
[401053788,1767894646199,-7417.0623782,0.00014112,2]
[401053790,1767894646208,-600.0,0.00014221,2]
[401053792,1767894646217,-1000.0,0.00014247,2]
[401053794,1767894646226,-1000.0,0.00014247,2]
[401053796,1767894646235,-1000.0,0.00014247,2]
[401053798,1767894646245,-1000.0,0.00014247,2]
[401053800,1767894646254,-1000.0,0.00014247,2]
[401053802,1767894646263,-1000.0,0.00014247,2]
[401053804,1767894646272,-752.51325936,0.00014247,2]
[401053806,1767894646282,-1000.0,0.00014247,2]
[401053808,1767894646291,-1000.0,0.00014247,2]
[401053810,1767894646300,-689.99222472,0.00014247,2]
[401053812,1767894646310,-434.10134692,0.00014247,2]
[401053814,1767894646319,-1000.0,0.00014247,2]
[401053816,1767894646328,-1000.0,0.00014247,2]
[401053818,1767894646338,-1000.0,0.00014247,2]
[401053820,1767894646347,-250.0,0.00014247,2]
[401053822,1767894646356,-1000.0,0.00014247,2]
[401053824,1767894646365,-1000.0,0.00014247,2]
[401053826,1767894646374,-1000.0,0.00014247,2]
[401053828,1767894646383,-1111.568419,0.00014247,2]
[401053830,1767894646393,-1000.0,0.00014247,2]
[401053832,1767894646402,-1000.0,0.00014247,2]
[401053834,1767894646411,-1000.0,0.00014247,2]
[401053836,1767894646420,-913.35141242,0.00014247,2]
[401053838,1767894646430,-1000.0,0.00014247,2]
[401053840,1767894646439,-1000.0,0.00014247,2]
[401053842,1767894646448,-1000.0,0.00014247,2]
[401053844,1767894646457,-1000.0,0.00014247,2]
[401053846,1767894646466,-502.343773,0.00014247,2]
[401053848,1767894646475,-1000.0,0.00014247,2]
[401053850,1767894646485,-1000.0,0.00014247,2]
[401053852,1767894646494,-298.48218787,0.00014247,2]
[401053854,1767894646503,-1004.01306288,0.00014247,2]
[401053856,1767894646511,-1000.0,0.00014247,2]
[401053858,1767894646520,-1000.0,0.00014247,2]
[401053860,1767894646530,-1000.0,0.00014247,2]
[401053861,1767894646539,-1000.0,0.00014247,2]
[401053863,1767894646548,-1000.0,0.00014247,2]
[401053865,1767894646557,-1000.0,0.00014247,2]
[401053867,1767894646566,-1000.0,0.00014247,2]
[401053869,1767894646575,-1000.0,0.00014247,2]
[401053871,1767894646585,-1000.0,0.00014247,2]
[401053873,1767894646595,-1000.0,0.00014247,2]
[401053875,1767894646605,-610.31065516,0.00014247,2]
[401053877,1767894646614,-1000.0,0.00014247,2]
[401053879,1767894646623,-1000.0,0.00014247,2]
[401053881,1767894646632,-1000.0,0.00014247,2]
[401053883,1767894646640,-1000.0,0.00014247,2]
[401053885,1767894646649,-252.61198988,0.00014247,2]
[401053887,1767894646658,-1000.0,0.00014247,2]
[401053888,1767894646666,-1000.0,0.00014247,2]
[401053889,1767894646675,-1000.0,0.00014247,2]
[401053890,1767894646684,-295.77275055,0.00014247,2]
[401053891,1767894646693,-1000.0,0.00014247,2]
[401053892,1767894646702,-1000.0,0.00014247,2]
[401053893,1767894646711,-1001.13148191,0.00014247,2]
[401053894,1767894646719,-956.27081693,0.00014247,2]
[401053895,1767894646728,-501.14993942,0.00014247,2]
[401053896,1767894646737,-441.63993024,0.00014247,2]
[401053897,1767894646746,-443.55206413,0.00014247,2]
[401053898,1767894646754,-1000.0,0.00014247,2]
[401053899,1767894646763,-1000.0,0.00014247,2]
[401053900,1767894646771,-1001.43129902,0.00014247,2]
[401053901,1767894646780,-1000.0,0.00014247,2]
[401053902,1767894646789,-1000.0,0.00014247,2]
[401053903,1767894646798,-366.95119537,0.00014247,2]
[401053904,1767894646807,-1000.0,0.00014247,2]
[401053905,1767894646816,-1000.61530681,0.00014247,2]
[401053906,1767894646825,-1000.0,0.00014247,2]
[401053907,1767894646834,-1000.0,0.00014247,2]
[401053908,1767894646842,-1000.0,0.00014247,2]
[401053909,1767894646851,-1000.0,0.00014247,2]
[401053910,1767894646860,-1000.0,0.00014247,2]
[401053911,1767894646869,-1000.0,0.00014247,2]
[401053912,1767894646878,-268.00171243,0.00014247,2]
[401053913,1767894646887,-1000.0,0.00014247,2]
[401053914,1767894646896,-1000.0,0.00014247,2]
[401053915,1767894646904,-1000.0,0.00014247,2]
[401053916,1767894646914,-1500.0,0.00014368,2]
[401053917,1767894646927,-1500.0,0.00014368,2]
[401053918,1767894646936,-1500.0,0.00014368,2]
[401053919,1767894646946,-1551.07359724,0.00014368,2]
[401053921,1767894646955,-498.98190963,0.00014368,2]
[401053923,1767894646966,-1500.0,0.00014368,2]
[401053925,1767894646975,-1500.0,0.00014368,2]
[401053927,1767894646984,-1500.0,0.00014368,2]
[401053929,1767894646994,-1544.98070057,0.00014368,2]
[401053931,1767894647003,-1613.91769968,0.00014368,2]
[401053933,1767894647012,-901.64301006,0.00014368,2]
[401053935,1767894647021,-1500.0,0.00014368,2]
[401053936,1767894647030,-1259.53509547,0.00014368,2]
[401053938,1767894647041,-1500.0,0.00014368,2]
[401053940,1767894647050,-1500.0,0.00014368,2]
[401053942,1767894647059,-1500.0,0.00014368,2]
[401053944,1767894647068,-1500.0,0.00014368,2]
[401053946,1767894647077,-1500.0,0.00014368,2]
[401053948,1767894647086,-1500.0,0.00014368,2]
[401053950,1767894647099,-1500.0,0.00014368,2]
[401053952,1767894647108,-1500.0,0.00014368,2]
[401053954,1767894647118,-1510.98739129,0.00014368,2]
[401053956,1767894647127,-564.05017916,0.00014368,2]
[401053958,1767894647137,-1500.0,0.00014368,2]
[401053960,1767894647146,-1500.0,0.00014368,2]
[401053962,1767894647155,-1167.28581766,0.00014368,2]
[401053965,1767894647165,-1500.0,0.00014368,2]
[401053966,1767894647174,-1500.0,0.00014368,2]
[401053968,1767894647184,-1500.0,0.00014368,2]
[401053970,1767894647193,-1500.0,0.00014368,2]
[401053972,1767894647203,-1500.0,0.00014368,2]
[401053975,1767894647213,-1000.0,0.00014368,2]
[401053977,1767894647223,-1500.0,0.00014368,2]
[401053979,1767894647231,-1223.48736773,0.00014368,2]
[401053980,1767894647241,-400.46467622,0.00014368,2]
[401053982,1767894647250,-6453.0,0.00014503,2]
[401053984,1767894647259,-553.64373807,0.00014527,2]
[401053986,1767894647269,-32261.07,0.00014527,2]
[401053988,1767894647278,-2674.60743027,0.00014527,2]
[401053991,1767894647291,-201.93286099,0.00014527,2]
[401053993,1767894647303,-151.0,0.00014527,2]
[401053995,1767894647312,-1613.0,0.00014563,2]
[401053997,1767894647321,-541.3896343,0.00014604,2]
[401053999,1767894647330,-900.0,0.00014768,2]
[401054000,1767894647340,-1500.0,0.00014795,2]
[401054002,1767894647349,-1500.0,0.00014795,2]
[401054004,1767894647358,-1501.8641087,0.00014795,2]
[401054006,1767894647367,-1500.0,0.00014795,2]
[401054008,1767894647378,-158.42695307,0.00014795,2]
[401054010,1767894647387,-1500.0,0.00014795,2]
[401054012,1767894647396,-1488.64589349,0.00014795,2]
[401054014,1767894647406,-1500.0,0.00014795,2]
[401054016,1767894647416,-671.21056223,0.00014795,2]
[401054018,1767894647425,-928.80611253,0.00014795,2]
[401054020,1767894647433,-350.0,0.00014795,2]
[401054022,1767894647444,-1160.9556774,0.00014795,2]
[401054024,1767894647453,-1501.75744597,0.00014795,2]
[401054025,1767894647463,-1500.0,0.00014795,2]
[401054027,1767894647473,-1469.53593685,0.00014795,2]
[401054029,1767894647482,-1500.0,0.00014795,2]
[401054031,1767894647492,-500.54648237,0.00014795,2]
[401054033,1767894647501,-580.84036522,0.00014795,2]
[401054035,1767894647511,-1500.0,0.00014795,2]
[401054037,1767894647520,-852.55903874,0.00014795,2]
[401054039,1767894647530,-192.36614921,0.00014795,2]
[401054041,1767894647540,-1500.0,0.00014795,2]
[401054043,1767894647550,-1500.0,0.00014795,2]
[401054045,1767894647559,-1500.0,0.00014795,2]
[401054047,1767894647569,-1500.0,0.00014795,2]
[401054049,1767894647578,-1500.0,0.00014795,2]
[401054051,1767894647588,-1500.0,0.00014795,2]
[401054053,1767894647598,-1500.0,0.00014795,2]
[401054055,1767894647608,-1500.0,0.00014795,2]
[401054057,1767894647617,-504.856401,0.00014795,2]
[401054059,1767894647627,-1500.0,0.00014795,2]
[401054061,1767894647636,-1500.0,0.00014795,2]
[401054063,1767894647645,-1500.0,0.00014795,2]
[401054065,1767894647655,-1018.32057392,0.00014795,2]
[401054067,1767894647664,-1500.0,0.00014795,2]
[401054069,1767894647673,-874.8306527,0.00014795,2]
[401054071,1767894647682,-1500.0,0.00014795,2]
[401054073,1767894647691,-1501.33075681,0.00014795,2]
[401054075,1767894647700,-1500.0,0.00014795,2]
[401054077,1767894647709,-1500.0,0.00014795,2]
[401054079,1767894647718,-1500.0,0.00014795,2]
[401054081,1767894647727,-1500.0,0.00014795,2]
[401054082,1767894647737,-1500.0,0.00014795,2]
[401054084,1767894647746,-1500.0,0.00014795,2]
[401054086,1767894647755,-1500.0,0.00014795,2]
[401054088,1767894647764,-1500.0,0.00014795,2]
[401054090,1767894647774,-607.41040289,0.00014795,2]
[401054092,1767894647783,-1500.0,0.00014795,2]
[401054094,1767894647792,-1500.0,0.00014795,2]
[401054096,1767894647802,-1500.0,0.00014795,2]
[401054098,1767894647812,-1500.0,0.00014795,2]
[401054100,1767894647821,-1500.0,0.00014795,2]
[401054102,1767894647830,-1500.0,0.00014795,2]
[401054104,1767894647840,-100000.0,0.00014882,2]
[401054106,1767894647849,-1362.26700217,0.000149,2]
[401054108,1767894647859,-1500.0,0.00014916,2]
[401054109,1767894647868,-2000.0,0.00014916,2]
[401054111,1767894647878,-1370.82057374,0.00014916,2]
[401054113,1767894647890,-1512.87309708,0.00014916,2]
[401054115,1767894647899,-1982.69771169,0.00014916,2]
[401054117,1767894647909,-651.97322479,0.00014916,2]
[401054119,1767894647921,-2000.0,0.00014916,2]
[401054121,1767894647931,-1215.59305316,0.00014916,2]
[401054123,1767894647940,-2000.0,0.00014916,2]
[401054125,1767894647948,-2000.0,0.00014916,2]
[401054127,1767894647959,-2000.0,0.00014916,2]
[401054129,1767894647967,-485.49285484,0.00014916,2]
[401054131,1767894647977,-2000.0,0.00014916,2]
[401054133,1767894647987,-2000.0,0.00014916,2]
[401054135,1767894647998,-2000.0,0.00014916,2]
[401054137,1767894648007,-1301.92776876,0.00014916,2]
[401054139,1767894648016,-2000.0,0.00014916,2]
[401054141,1767894648026,-2000.0,0.00014916,2]
[401054143,1767894648035,-1783.80150252,0.00014916,2]
[401054145,1767894648044,-2000.0,0.00014916,2]
[401054147,1767894648054,-610.58225543,0.00014916,2]
[401054149,1767894648063,-1526.2364852,0.00014916,2]
[401054151,1767894648072,-2000.0,0.00014916,2]
[401054153,1767894648081,-2808.74942779,0.00014937,2]
[401054155,1767894648091,-3192.86303222,0.00014937,2]
[401054157,1767894648100,-5439.05122134,0.00015022,2]
[401054159,1767894648109,-857.97297879,0.00015024,2]
[401054161,1767894648119,-800.0,0.00015068,2]
[401054163,1767894648128,-574.12855637,0.00015075,2]
[401054164,1767894648137,-33454.72959,0.00015075,2]
[401054166,1767894648148,-2773.56790519,0.00015075,2]
[401054168,1767894648159,-209.40437684,0.00015075,2]
[401054171,1767894648169,-151.0,0.00015075,2]
[401054172,1767894648179,-1200.0,0.00015316,2]
[401054174,1767894648189,-1000.0,0.00015327,2]
[401054176,1767894648199,-492.0,0.00015327,2]
[401054178,1767894648208,-655.09397851,0.00015342,2]
[401054180,1767894648219,-2014.12213244,0.00015342,2]
[401054182,1767894648228,-2000.0,0.00015342,2]
[401054184,1767894648237,-2000.0,0.00015342,2]
[401054186,1767894648246,-1640.67728986,0.00015342,2]
[401054187,1767894648256,-542.93732994,0.00015342,2]
[401054190,1767894648266,-602.53259662,0.00015342,2]
[401054192,1767894648276,-2000.0,0.00015342,2]
[401054193,1767894648285,-171.82162916,0.00015342,2]
[401054195,1767894648294,-1002.96437935,0.00015342,2]
[401054197,1767894648304,-2000.0,0.00015342,2]
[401054199,1767894648312,-503.14554213,0.00015342,2]
[401054201,1767894648322,-730.23234032,0.00015342,2]
[401054203,1767894648331,-2000.0,0.00015342,2]
[401054205,1767894648341,-1029.61129365,0.00015342,2]
[401054207,1767894648351,-500.68920715,0.00015342,2]
[401054209,1767894648360,-1505.51755244,0.00015342,2]
[401054211,1767894648370,-2000.0,0.00015342,2]
[401054213,1767894648378,-2000.0,0.00015342,2]
[401054215,1767894648388,-619.88473834,0.00015342,2]
[401054217,1767894648397,-2000.0,0.00015342,2]
[401054219,1767894648407,-2000.0,0.00015342,2]
[401054221,1767894648417,-1506.84567032,0.00015342,2]
[401054223,1767894648426,-2000.0,0.00015342,2]
[401054225,1767894648435,-921.00515568,0.00015342,2]
[401054227,1767894648444,-1786.81506182,0.00015342,2]
[401054229,1767894648453,-2000.0,0.00015342,2]
[401054231,1767894648463,-2000.0,0.00015342,2]
[401054233,1767894648472,-1108.00999349,0.00015342,2]
[401054235,1767894648481,-1482.84709438,0.00015342,2]
[401054237,1767894648490,-2003.80919542,0.00015342,2]
[401054238,1767894648500,-2004.51727604,0.00015342,2]
[401054240,1767894648509,-2000.0,0.00015342,2]
[401054242,1767894648518,-1700.34918809,0.00015342,2]
[401054244,1767894648528,-2000.0,0.00015342,2]
[401054246,1767894648537,-500.76011771,0.00015342,2]
[401054248,1767894648546,-2500.0,0.00015464,2]
[401054250,1767894648555,-2454.68786097,0.00015464,2]
[401054252,1767894648565,-2500.0,0.00015464,2]
[401054254,1767894648575,-2500.0,0.00015464,2]
[401054256,1767894648584,-1869.5151472,0.00015464,2]
[401054258,1767894648594,-1010.32213921,0.00015464,2]
[401054259,1767894648604,-2500.0,0.00015464,2]
[401054260,1767894648613,-2500.0,0.00015464,2]
[401054261,1767894648622,-506.74415815,0.00015464,2]
[401054262,1767894648632,-2500.0,0.00015464,2]
[401054263,1767894648641,-2500.0,0.00015464,2]
[401054264,1767894648650,-2500.0,0.00015464,2]
[401054265,1767894648659,-1222.595979,0.00015623,2]
[401054266,1767894648668,-1222.595979,0.00015623,2]
[401054268,1767894648677,-1222.595979,0.00015623,2]
[401054270,1767894648687,-1222.595979,0.00015623,2]
[401054271,1767894648695,-522.121584,0.00015623,2]
[401054273,1767894648704,-522.121584,0.00015623,2]
[401054274,1767894648713,-522.121584,0.00015623,2]
[401054279,1767894648722,-522.121584,0.00015623,2]
[401054280,1767894648860,-595.37131296,0.00015623,2]
[401054281,1767894648869,-34692.55458483,0.00015623,2]
[401054282,1767894648879,-2876.18991768,0.00015623,2]
[401054283,1767894648888,-217.15233878,0.00015623,2]
[401054284,1767894648897,-151.0,0.00015623,2]
[401054285,1767894648906,-1000.0,0.000158,2]
[401054286,1767894648919,-1500.0,0.00015864,2]
[401054287,1767894648928,-2046.66896035,0.0001589,2]
[401054288,1767894648937,-2500.0,0.0001589,2]
[401054289,1767894648946,-594.37321714,0.0001589,2]
[401054290,1767894648955,-1138.28627856,0.0001589,2]
[401054291,1767894648966,-2500.0,0.0001589,2]
[401054292,1767894648975,-1409.51288327,0.0001589,2]
[401054293,1767894648985,-338.23457806,0.0001589,2]
[401054294,1767894648994,-2500.0,0.0001589,2]
[401054295,1767894649004,-2586.48750274,0.0001589,2]
[401054296,1767894649014,-2145.40081224,0.0001589,2]
[401054297,1767894649023,-2500.0,0.0001589,2]
[401054298,1767894649034,-644.01857865,0.0001589,2]
[401054299,1767894649052,-2500.0,0.0001589,2]
[401054300,1767894649069,-1634.65901332,0.0001589,2]
[401054301,1767894649079,-9035.0,0.00015953,2]
[401054302,1767894649088,-3000.0,0.00016012,2]
[401054303,1767894649098,-1410.05192145,0.00016012,2]
[401054304,1767894649107,-2002.92123591,0.00016012,2]
[401054305,1767894649117,-1869.1892099,0.00016012,2]
[401054306,1767894649127,-3000.0,0.00016012,2]
[401054307,1767894649137,-3000.0,0.00016012,2]
[401054308,1767894649146,-3000.0,0.00016012,2]
[401054309,1767894649156,-3000.0,0.00016012,2]
[401054310,1767894649166,-2258.0,0.00016019,2]
[401054311,1767894649176,-1600.0,0.00016164,2]
[401054312,1767894649185,-617.40005154,0.00016171,2]
[401054313,1767894649195,-35976.17910447,0.00016171,2]
[401054314,1767894649204,-2982.60894464,0.00016171,2]
[401054315,1767894649214,-357.36398593,0.00016171,2]
[401054316,1767894649224,-151.0,0.00016171,2]
[401054317,1767894649233,-541.3896343,0.00016204,2]
[401054318,1767894649243,-4993.33231607,0.00016371,2]
[401054319,1767894649252,-5676.20094618,0.00016371,2]
[401054320,1767894649261,-1800.0,0.00016412,2]
[401054321,1767894649271,-500.0,0.00016438,2]
[401054322,1767894649281,-594.35152189,0.00016438,2]
[401054323,1767894649290,-154.86011847,0.00016438,2]
[401054324,1767894649299,-151.0,0.00016438,2]
[401054325,1767894649309,-3026.70356569,0.00016438,2]
[401054326,1767894649318,-3071.48096018,0.00016438,2]
[401054327,1767894649328,-3000.0,0.00016438,2]
[401054328,1767894649338,-3000.0,0.00016438,2]
[401054329,1767894649347,-3000.0,0.00016438,2]
[401054330,1767894649356,-260.00260822,0.00016438,2]
[401054331,1767894649366,-200.0,0.00016473,2]
[401054332,1767894649375,-3500.0,0.0001656,2]
[401054333,1767894649385,-3500.0,0.0001656,2]
[401054334,1767894649395,-3500.0,0.0001656,2]
[401054335,1767894649405,-3500.0,0.0001656,2]
[401054336,1767894649415,-896.00511375,0.0001656,2]
[401054337,1767894649424,-3226.48735226,0.00016613,2]
[401054338,1767894649433,-5000.0,0.00016632,2]
[401054339,1767894649443,-640.24385345,0.00016719,2]
[401054340,1767894649452,-37307.29773133,0.00016719,2]
[401054341,1767894649461,-3092.96547559,0.00016719,2]
[401054342,1767894649470,-1000.0,0.00016859,2]
[401054343,1767894649479,-791.0,0.00016859,2]
[401054344,1767894649489,-2100.0,0.0001696,2]
[401054345,1767894649498,-3500.0,0.00016986,2]
[401054346,1767894649507,-3500.0,0.00016986,2]
[401054347,1767894649517,-3500.0,0.00016986,2]
[401054348,1767894649526,-958.25553475,0.00017024,2]
[401054349,1767894649535,-4000.0,0.00017108,2]
[401054350,1767894649544,-4000.0,0.00017108,2]
[401054351,1767894649553,-4000.0,0.00017108,2]
[401054352,1767894649563,-509.97635533,0.00017108,2]
[401054353,1767894649574,-2400.0,0.0001726,2]
[401054354,1767894649584,-663.93287602,0.00017267,2]
[401054355,1767894649593,-38687.66774739,0.00017267,2]
[401054356,1767894649602,-3207.40519818,0.00017267,2]
[401054357,1767894649611,-2400.0,0.00017508,2]
[401054358,1767894649621,-4000.0,0.00017534,2]
[401054359,1767894649630,-4000.0,0.00017534,2]
[401054360,1767894649640,-4000.0,0.00017534,2]
[401054361,1767894649649,-7683.0,0.00017548,2]
[401054362,1767894649658,-3162.0,0.00017621,2]
[401054363,1767894649668,-498.72100815,0.00017656,2]
[401054364,1767894649678,-4500.0,0.00017656,2]
[401054365,1767894649688,-2481.03860106,0.00017656,2]
[401054366,1767894649697,-916.0706166,0.00017722,10]
[401054367,1767894649706,-7802.08174386,0.00017805,2]
[401054368,1767894649715,-8869.0639784,0.00017805,2]
[401054369,1767894649724,-688.49839244,0.00017815,2]
[401054370,1767894649733,-10171.5837719,0.00017815,2]
[401054371,1767894649742,-3326.07919052,0.00017815,2]
[401054372,1767894649752,-5439.05122134,0.00017815,2]
[401054373,1767894649761,-479.78804727,0.00017842,2]
[401054374,1767894649770,-5000.0,0.00018018,2]
[401054375,1767894649779,-1507.44944301,0.00018056,2]
[401054376,1767894649790,-4500.0,0.00018082,2]
[401054377,1767894649799,-4500.0,0.00018082,2]
[401054378,1767894649808,-4500.0,0.00018082,2]
[401054379,1767894649817,-3809.40518895,0.00018134,2]
[401054380,1767894649827,-5000.0,0.00018204,2]
[401054381,1767894649835,-1899.64931956,0.00018356,2]
[401054382,1767894649845,-713.97283296,0.00018363,2]
[401054383,1767894649854,-3449.14412057,0.00018363,2]
[401054384,1767894649864,-1000.0,0.00018545,2]
[401054385,1767894649873,-1000.0,0.00018545,2]
[401054386,1767894649883,-5000.0,0.0001863,2]
[401054387,1767894649892,-2395.64095761,0.0001863,2]
[401054388,1767894649901,-5000.0,0.0001863,2]
[401054389,1767894649911,-151.0,0.00018655,2]
[401054390,1767894649924,-780.44,0.000187,2]
[401054391,1767894649933,-5500.0,0.00018752,2]
[401054392,1767894649945,-916.0706166,0.00018831,11]
[401054393,1767894649960,-303.08788973,0.000189,2]
[401054394,1767894649969,-740.38982778,0.00018911,2]
[401054395,1767894649979,-3576.76245303,0.00018911,2]
[401054396,1767894649990,-5303.42720671,0.00018942,2]
[401054397,1767894650000,-1058.53809071,0.00019024,2]
[401054398,1767894650010,-303.08788973,0.00019089,2]
[401054399,1767894650020,-341.324064,0.00019178,2]